fUST/lending_fUST_20260423
["ID","MTS","AMOUNT","RATE_DAILY","PERIOD"]
[421027384,1776948640343,-138218.65023956,0.00022204,2]
[421027385,1776948640427,-397.19,0.00022204,2]
[421027398,1776948646919,-1032.92981013,0.00021082,2]
[421027399,1776948646931,-1569.30589161,0.00021082,2]
[421027400,1776948646941,-810.69410839,0.00021646,3]
[421027401,1776948646954,-37189.30589161,0.00021646,3]
[421027402,1776948646963,-30764.04840586,0.00022204,2]
[421027403,1776948646974,-16715.55663258,0.00022204,2]
[421027404,1776948683277,10000.0,0.00011,30]
[421027405,1776949262644,-300.0,7.599e-05,2]
[421027406,1776949262990,-2900.07483341,7.6e-05,2]
[421027407,1776949291911,-300.0,7.6e-05,2]
[421027408,1776949766132,-850.29552968,7.449e-05,2]
[421027409,1776949766157,-150.0,7.524e-05,2]
[421027410,1776949766180,-1200.0,7.599e-05,2]
[421027411,1776949766202,-300.0,7.599e-05,2]
[421027412,1776949766223,-11270.06371985,7.6e-05,2]
[421027413,1776949766245,-1200.0,8.359e-05,2]
[421027414,1776949766268,-300.0,8.359e-05,2]
[421027415,1776949766292,-177.0,9.524e-05,2]
[421027416,1776949766315,-2788.39439856,0.0001,2]
[421027417,1776949766344,-5012.15783308,0.0001,2]
[421027418,1776949766367,-204.0,0.00011524,2]
[421027423,1776949832005,-231.0,0.00013524,2]
[421027424,1776949832014,-1000.0,0.00013699,2]
[421027425,1776949832024,-500.0,0.00013699,2]
[421027426,1776949832033,-500.0,0.00013699,2]
[421027427,1776949832042,-500.0,0.00013699,2]
[421027428,1776949832052,-500.0,0.00013699,2]
[421027429,1776949832062,-266.00105183,0.00013699,2]
[421027430,1776949832071,-209.84066689,0.00013898,2]
[421027431,1776949832080,-682.27,0.00013998,2]
[421027432,1776949832089,-682.27,0.00013999,2]
[421027433,1776949832098,-523.70069175,0.00013999,2]
[421027434,1776949832110,-158.56930825,0.00013999,2]
[421027435,1776949832120,-682.27,0.00013999,2]
[421027436,1776949832129,-682.27,0.00013999,2]
[421027437,1776949832138,-682.27,0.00013999,2]
[421027438,1776949832148,-249.22385739,0.00014007,2]
[421027439,1776949832157,-682.27,0.00014107,2]
[421027440,1776949832166,-682.27,0.00015205,2]
[421027441,1776949832175,-682.27,0.00015205,2]
[421027442,1776949832184,-535.72656027,0.00015307,2]
[421027667,1776949846353,-146.54343973,0.00015307,2]
[421027668,1776949846366,-258.0,0.00015524,2]
[421027669,1776949846378,-249.22385733,0.00015563,2]
[421027670,1776949846391,-682.27,0.00016107,2]
[421027671,1776949846402,-486.45,0.00016438,2]
[421027672,1776949846415,-249.22385733,0.00017119,2]
[421027673,1776949846427,-285.0,0.00017524,2]
[421027674,1776949846439,-249.22385733,0.00018675,2]
[421027675,1776949846451,-682.27,0.00019101,2]
[421027676,1776949846463,-682.27,0.00019101,2]
[421027677,1776949846476,-178.0,0.00019342,3]
[421027678,1776949846488,-312.0,0.00019524,2]
[421027679,1776949846500,-682.27,0.00019599,2]
[421027680,1776949846512,-184.0,0.00019747,2]
[421027681,1776949846524,-7838.50374381,0.00019799,2]
[421027682,1776949846536,-220.2009867,0.000198,2]
[421027683,1776949846549,-546.56359147,0.00019898,2]
[421027684,1776949846561,-1279.62872238,0.00019898,2]
[421027685,1776949846573,-1279.62872238,0.00019898,2]
[421027686,1776949846585,-1279.62872238,0.00019898,2]
[421027687,1776949846598,-1279.62872238,0.00019898,2]
[421027688,1776949846610,-1279.62872238,0.00019898,2]
[421027689,1776949846623,-1279.62872238,0.00019898,2]
[421027690,1776949846635,-1279.62872238,0.00019898,2]
[421027691,1776949846648,-1279.62872238,0.00019898,2]
[421027692,1776949846661,-1279.62872238,0.00019898,2]
[421027693,1776949846673,-1279.62872238,0.00019898,2]
[421027694,1776949846686,-1279.62872238,0.00019898,2]
[421027695,1776949846698,-1279.62872238,0.00019898,2]
[421027696,1776949846710,-1279.62872238,0.00019898,2]
[421027697,1776949846722,-1279.62872238,0.00019898,2]
[421027698,1776949846735,-1279.62872238,0.00019898,2]
[421027699,1776949846747,-1279.62872238,0.00019898,2]
[421027700,1776949846760,-937.8849756,0.00019898,2]
[421035388,1776950302628,-5000.0,9.801e-05,2]
[421035390,1776950302654,-150.0,9.851e-05,2]
[421035391,1776950302680,-300.0,9.899e-05,2]
[421035393,1776950302704,-300.0,9.899e-05,2]
[421035394,1776950302731,-5000.0,9.9e-05,2]
[421035396,1776950302756,-361.4549499,0.0001,2]
[421035397,1776950302781,-420.0,0.00010889,2]
[421035398,1776950302806,-240.0,0.00010889,2]
[421035400,1776950302830,-296.35668417,0.000118,2]
[421035401,1776950302856,-177.0,0.00011851,2]
[421035403,1776950302879,-2000.0,0.000119,2]
[421035404,1776950302904,-587.0,0.00011978,2]
[421035433,1776950304843,3534.60230206,9.703e-05,2]
[421042030,1776950741080,-150.0,0.00013511,2]
[421042031,1776950741106,-152.0,0.00013666,7]
[421042033,1776950741128,-500.0,0.00013698,2]
[421042034,1776950741151,-198.0,0.00013699,2]
[421042051,1776950742176,-802.0,0.00013699,2]
[421042053,1776950742198,-198.0,0.0001413,2]
[421042068,1776950743123,-1000.0,0.0001413,2]
[421042080,1776950743997,-1000.0,0.0001413,2]
[421042094,1776950744874,-1000.0,0.0001413,2]
[421042109,1776950745767,-1000.0,0.0001413,2]
[421042122,1776950746616,-802.0,0.0001413,2]
[421042123,1776950746638,-198.0,0.00014136,2]
[421042135,1776950747459,-102.0,0.00014136,2]
[421042141,1776950747766,-300.0,0.00014136,2]
[421042142,1776950747787,-300.0,0.00014136,2]
[421042144,1776950747808,-298.0,0.00014136,2]
[421042154,1776950748440,-2.0,0.00014136,2]
[421042156,1776950748463,-998.0,0.00014136,2]
[421042169,1776950749390,-202.0,0.00014136,2]
[421042170,1776950749414,-500.0,0.00014137,2]
[421042171,1776950749437,-298.0,0.00014137,2]
[421042182,1776950750598,-202.0,0.00014137,2]
[421042184,1776950750623,-500.0,0.00014137,2]
[421042185,1776950750647,-298.0,0.00014137,2]
[421042197,1776950751415,-202.0,0.00014137,2]
[421042199,1776950751439,-500.0,0.00014137,2]
[421042200,1776950751464,-298.0,0.00014137,2]
[421042217,1776950752598,-202.0,0.00014137,2]
[421042219,1776950752624,-500.0,0.00014137,2]
[421042220,1776950752650,-298.0,0.00014137,2]
[421042233,1776950753491,-202.0,0.00014137,2]
[421042235,1776950753517,-500.0,0.00014137,2]
[421042236,1776950753542,-298.0,0.00014137,2]
[421042251,1776950754525,-202.0,0.00014137,2]
[421042253,1776950754550,-500.0,0.00014137,2]
[421042254,1776950754575,-298.0,0.00014137,2]
[421042264,1776950755545,-202.0,0.00014137,2]
[421042265,1776950755570,-500.0,0.00014137,2]
[421042267,1776950755595,-298.0,0.00014137,2]
[421042283,1776950756652,-202.0,0.00014137,2]
[421042284,1776950756677,-500.0,0.00014137,2]
[421042286,1776950756702,-298.0,0.00014137,2]
[421042301,1776950757677,-1000.0,0.00014036,2]
[421042318,1776950758679,-1000.0,0.00014036,2]
[421042334,1776950759680,-462.24156559,0.00014036,2]
[421042335,1776950759705,-202.0,0.00014137,2]
[421042337,1776950759731,-335.75843441,0.00014137,2]
[421042438,1776950766842,-197.0,0.00014136,2]
[421042439,1776950766866,-78.18749689,0.00014137,2]
[421042441,1776950766890,-500.0,0.00014137,2]
[421042442,1776950766914,-224.81250311,0.00014137,2]
[421042861,1776950799070,-645.0,9e-05,2]
[421043469,1776950845126,-641.79754933,9e-05,2]
[421043470,1776950845147,-148.02327484,0.00014137,2]
[421044629,1776950954151,-1000.0,0.00013699,2]
[421044630,1776950954174,-150.0,0.00014137,2]
[421044631,1776950954196,-500.0,0.00014137,2]
[421044632,1776950954218,-500.0,0.00014137,2]
[421044633,1776950954240,-500.0,0.00014137,2]
[421044634,1776950954261,-268.24501018,0.00014137,2]
[421044635,1776950954280,-2033.0,0.00014137,2]
[421044636,1776950954307,-500.0,0.00014137,2]
[421044637,1776950954329,-500.0,0.00014137,2]
[421044638,1776950954353,-189.06334033,0.00014137,2]
[421044639,1776950954378,-500.0,0.00014137,2]
[421044640,1776950954398,-500.0,0.00014137,2]
[421044641,1776950954420,-500.0,0.00014137,2]
[421044642,1776950954440,-333.90048236,0.00014137,2]
[421044643,1776950954461,-500.0,0.00014137,2]
[421044644,1776950954483,-486.94633497,0.00014137,2]
[421044645,1776950954504,-500.0,0.00014137,2]
[421044646,1776950954526,-500.0,0.00014137,2]
[421044647,1776950954547,-500.0,0.00014137,2]
[421044648,1776950954568,-500.0,0.00014137,2]
[421044649,1776950954590,-500.0,0.00014137,2]
[421044650,1776950954610,-484.22133065,0.00014137,2]
[421044651,1776950954630,-66600.77018291,0.00014138,2]
[421044652,1776950954650,-166.14923822,0.0001545,2]
[421044653,1776950954671,-1680.0,0.0001555,2]
[421044654,1776950954692,-209.83635501,0.00015912,2]
[421044655,1776950954714,-177.0,0.00016137,2]
[421044656,1776950954735,-162.60814218,0.00017105,2]
[421044657,1776950958643,-1658.39185782,0.00017105,2]
[421044658,1776950958663,-166.14923822,0.0001734,2]
[421044659,1776950958683,-10117.42012224,0.000177,2]
[421044660,1776950958703,-9534.35471158,0.000179,2]
[421044676,1776951032169,-161.1930567,0.0001481,2]
[421044677,1776951032179,-1303.4435006,0.00018,2]
[421044678,1776951032229,-291.42109525,0.00018,2]
[421044686,1776951038522,-5537.34541621,0.00018,2]
[421044687,1776951038534,-2867.78998794,0.00018,2]
[421044688,1776951038543,-160.0,0.00018,2]
[421044689,1776951038553,-204.0,0.00018137,2]
[421044690,1776951038562,-537.6845,0.00019094,2]
[421044691,1776951038571,-425.06442059,0.00019149,2]
[421044692,1776951038581,-874.57542932,0.0001923,2]
[421044693,1776951038590,-500.0,0.00019898,2]
[421044694,1776951038599,-500.0,0.00019898,2]
[421044695,1776951038608,-500.0,0.00019898,2]
[421044696,1776951038618,-500.0,0.00019898,2]
[421044697,1776951038627,-500.0,0.00019898,2]
[421044698,1776951038636,-500.0,0.00019898,2]
[421044699,1776951038646,-500.0,0.00019898,2]
[421044700,1776951038656,-500.0,0.00019898,2]
[421044701,1776951038665,-500.0,0.00019898,2]
[421044702,1776951038674,-500.0,0.00019898,2]
[421044703,1776951038685,-500.0,0.00019898,2]
[421044704,1776951038695,-500.0,0.00019898,2]
[421044705,1776951038704,-322.70737182,0.00019898,2]
[421044706,1776951038713,-368.518,0.000199,2]
[421044707,1776951038723,-986.75294307,0.000199,2]
[421044708,1776951038732,-14631.94645213,0.000199,2]
[421044709,1776951038742,-110787.45176349,0.0002,2]
[421044710,1776951038751,-101045.36255337,0.0002,2]
[421044711,1776951038761,-4713.99750678,0.0002,2]
[421044712,1776951038770,-975.0,0.0002,2]
[421044713,1776951038780,-5000.0,0.0002,90]
[421044714,1776951038789,-165.0,0.0002,2]
[421044715,1776951038799,-152.0,0.0002,2]
[421044716,1776951038809,-289.0,0.0002,2]
[421044717,1776951038819,-158.0,0.0002,2]
[421044718,1776951038828,-152.0,0.00020003,7]
[421044719,1776951038837,-231.0,0.00020137,2]
[421044720,1776951038847,-167.0,0.0002034,2]
[421044721,1776951038856,-986.75294304,0.00020448,2]
[421044722,1776951038865,-257.0,0.000209,2]
[421044723,1776951038875,-500.0,0.00020956,2]
[421044724,1776951038885,-184.0,0.00020977,2]
[421044725,1776951038894,-269.0,0.00020986,3]
[421044726,1776951038904,-451.18,0.00020986,3]
[421044727,1776951038913,-986.75294304,0.00020996,2]
[421044728,1776951038923,-1000.0,0.00021,30]
[421044729,1776951038932,-975.0,0.00021,2]
[421044730,1776951038941,-300.0,0.00021,2]
[421044731,1776951038951,-165.0,0.00021,2]
[421044732,1776951038960,-152.0,0.00021,2]
[421044733,1776951038970,-289.0,0.00021,2]
[421044734,1776951038979,-158.0,0.00021,2]
[421044735,1776951038988,-166.14923822,0.0002112,2]
[421044736,1776951038997,-500.0,0.000212,10]
[421044737,1776951039006,-501.33012231,0.000212,2]
[421044738,1776951039015,-1000.0,0.000215,30]
[421044739,1776951039024,-986.75294304,0.00021544,2]
[421044740,1776951039033,-1414.1019628,0.00021635,2]
[421044741,1776951039042,-151.4003602,0.0002174,2]
[421044742,1776951039051,-1734.82380116,0.0002176,2]
[421044743,1776951039061,-17157.2184005,0.00021792,3]
[421044744,1776951039070,-2280.02546,0.00021843,2]
[421044745,1776951039079,-1500.0,0.00021843,2]
[421044746,1776951039088,-1500.0,0.00021843,2]
[421044747,1776951039097,-1500.708666,0.00021843,2]
[421044748,1776951039106,-1191.0,0.00021918,5]
[421044749,1776951039116,-218.86369115,0.00021918,2]
[421044750,1776951039125,-1000.0,0.00022,30]
[421044751,1776951039134,-975.0,0.00022,2]
[421044752,1776951039144,-165.0,0.00022,2]
[421044753,1776951039155,-152.0,0.00022,2]
[421044754,1776951039164,-289.0,0.00022,2]
[421044755,1776951039174,-158.0,0.00022,2]
[421044756,1776951039183,-986.75294304,0.00022092,2]
[421044757,1776951039193,-3044.13003342,0.00022092,2]
[421044758,1776951039202,-258.0,0.00022137,2]
[421044759,1776951039212,-500.0,0.00022173,2]
[421044760,1776951039221,-500.0,0.00022173,2]
[421044761,1776951039231,-267.46668479,0.00022173,2]
[421044762,1776951039240,-500.0,0.00022173,2]
[421044763,1776951039250,-500.0,0.00022173,2]
[421044764,1776951039259,-283.31415785,0.00022173,2]
[421044765,1776951039269,-500.0,0.00022173,2]
[421044766,1776951039279,-504.47604606,0.00022173,2]
[421044767,1776951039288,-502.69739404,0.00022173,2]
[421044768,1776951039298,-517.82386226,0.00022173,2]
[421044769,1776951039308,-1123888.96776298,0.00022191,2]
[421044770,1776951039326,-2276.2881999,0.00022191,2]
[421044774,1776951046920,-1156.54920077,0.0002176,2]
[421044775,1776951046930,-2625.76407841,0.00022191,2]
[421044776,1776951046941,-1077.33476705,0.00022191,2]
[421044777,1776951047033,-140.42477275,0.00022191,2]
[421044778,1776951047081,-87.75786935,0.00022191,2]
[421044779,1776951047096,-55721.17726662,0.00022191,2]
[421051492,1776952018263,-171.02632281,0.00012285,10]
[421051493,1776952029295,-4.43367719,0.00012285,10]
[421051494,1776952029315,-184.95644717,0.00012603,2]
[421051495,1776952029334,-184.95644717,0.00012855,7]
[421051496,1776952029354,-20.11637412,0.00013699,2]
[421051498,1776952047141,-979.88362588,0.00013699,2]
[421051499,1776952047163,-300.0,0.00014137,2]
[421051500,1776952047185,-1200.0,0.00014137,2]
[421051501,1776952047208,-300.0,0.00014137,2]
[421051502,1776952047229,-66600.77018291,0.00014138,2]
[421051503,1776952047252,-166.14923822,0.00014566,2]
[421051504,1776952047276,-177.0,0.00014666,2]
[421051505,1776952047299,-250.0,0.00016438,2]
[421051506,1776952047320,-500.0,0.00016665,2]
[421051507,1776952047342,-500.0,0.00016665,2]
[421051508,1776952047363,-304.02706257,0.00016665,2]
[421051509,1776952047386,-500.0,0.00016665,2]
[421051510,1776952047407,-400.43551913,0.00016665,2]
[421051512,1776952146146,-788.0,8.219e-05,2]
[421051513,1776952146171,-150.0,0.0001161,2]
[421051514,1776952146193,-184.95644716,0.00013365,14]
[421051515,1776952146217,-177.0,0.0001361,2]
[421051516,1776952146237,-500.0,0.00014999,2]
[421051517,1776952146259,-500.0,0.00014999,2]
[421051518,1776952146280,-500.0,0.00014999,2]
[421051519,1776952146305,-500.0,0.00014999,2]
[421051520,1776952146326,-536.94633497,0.00014999,2]
[421051521,1776952146347,-500.0,0.00014999,2]
[421051522,1776952146366,-333.90048236,0.00014999,2]
[421051523,1776952146391,-88.65813486,0.00014999,2]
[421051524,1776952148101,-411.34186514,0.00014999,2]
[421051525,1776952148124,-500.0,0.00014999,2]
[421051526,1776952148148,-500.0,0.00014999,2]
[421051527,1776952148171,-500.0,0.00014999,2]
[421051528,1776952148193,-464.71667798,0.00014999,2]
[421051529,1776952148217,-190.49125906,0.00014999,2]
[421051530,1776952148239,-500.0,0.00014999,2]
[421051531,1776952148260,-500.0,0.00014999,2]
[421051532,1776952148279,-67567.70219211,0.00015,15]
[421051533,1776952153117,-31967.24280786,0.00015,15]
[421051534,1776952154102,-464.05500003,0.00015,15]
[421051535,1776952154127,-204.0,0.0001561,2]
[421051536,1776952154149,-204.54958046,0.0001761,2]
[421051571,1776952238802,-26.45041954,0.0001761,2]
[421051572,1776952238811,-529.0,0.00018712,2]
[421051573,1776952238821,-529.0,0.00018712,2]
[421051574,1776952238831,-529.0,0.00018712,2]
[421051575,1776952238841,-82.46810102,0.00018712,2]
[421051576,1776952239024,-446.53189898,0.00018712,2]
[421051577,1776952239034,-529.0,0.00018712,2]
[421051578,1776952239044,-529.0,0.00018712,2]
[421051579,1776952239054,-529.0,0.00018712,2]
[421051580,1776952239064,-529.0,0.00018712,2]
[421051581,1776952239073,-529.0,0.00018712,2]
[421051582,1776952239082,-529.0,0.00018712,2]
[421051583,1776952239093,-529.0,0.00018712,2]
[421051584,1776952239102,-529.0,0.00018712,2]
[421051585,1776952239111,-529.0,0.00018712,2]
[421051586,1776952239120,-529.0,0.00018712,2]
[421051587,1776952239130,-529.0,0.00018712,2]
[421051588,1776952239139,-529.0,0.00018712,2]
[421051589,1776952239148,-1225.22140711,0.00018712,2]
[421051590,1776952239162,-2707.5715113,0.00018712,2]
[421051591,1776952239171,-154.0,0.00019,2]
[421051592,1776952239181,-680.85670391,0.00019178,2]
[421051594,1776952239190,-151.0,0.0001944,2]
[421051595,1776952239199,-258.0,0.0001961,2]
[421051596,1776952239208,-160.0,0.00019714,2]
[421051598,1776952239218,-328.27,0.00019772,2]
[421051600,1776952239227,-189.5850088,0.00019772,2]
[421051602,1776952239237,-946.1,0.000199,2]
[421051604,1776952239246,-1009.0,0.0002,2]
[421051606,1776952239256,-170.0,0.0002,2]
[421051608,1776952239265,-165.0,0.0002,2]
[421051610,1776952239275,-158.0,0.0002,2]
[421051612,1776952239284,-301.0,0.0002,2]
[421051614,1776952239293,-165.0,0.0002,2]
[421051616,1776952239302,-290.5328668,0.0002029,5]
[421051618,1776952239311,-2150.738,0.00020662,2]
[421051620,1776952239320,-946.1,0.000209,2]
[421051622,1776952239329,-1009.0,0.00021,2]
[421051624,1776952239338,-170.0,0.00021,2]
[421051626,1776952239347,-158.0,0.00021,2]
[421051627,1776952239356,-301.0,0.00021,2]
[421051628,1776952239366,-165.0,0.00021,2]
[421051629,1776952239376,-184.0,0.00021011,2]
[421051630,1776952239385,-200.10053957,0.000212,3]
[421051631,1776952239395,-500.0,0.000212,10]
[421051632,1776952239404,-200.0,0.000212,3]
[421051633,1776952239414,-500.0,0.000212,10]
[421051634,1776952239423,-200.36917925,0.000212,3]
[421051636,1776952239432,-622.82990519,0.0002121,2]
[421051638,1776952239442,-285.0,0.0002161,2]
[421051639,1776952239451,-151.0,0.00021742,2]
[421051640,1776952239460,-771.03280051,0.0002176,2]
[421051641,1776952239470,-176.12296697,0.00021873,2]
[421051643,1776952239479,-337.43848166,0.00021875,2]
[421051645,1776952239489,-187.83236212,0.00021875,2]
[421051647,1776952239498,-166.14923822,0.00021876,2]
[421051649,1776952239507,-56823.72740394,0.00021876,2]
[421051651,1776952239523,-3677.50362038,0.00021876,2]
[421051655,1776952239552,-580.9575,0.00021876,2]
[421051740,1776952247047,-514.02186701,0.0002176,2]
[421051741,1776952247057,-35787.82854809,0.00021876,2]
[421051742,1776952247067,-176.12296697,0.00021879,2]
[421051743,1776952247077,-946.1,0.000219,2]
[421051744,1776952247087,-444.36762234,0.00021967,2]
[421051745,1776952247097,-733.0048413,0.00021967,2]
[421051746,1776952247107,-733.0048413,0.00021967,2]
[421051747,1776952247117,-733.0048413,0.00021967,2]
[421051748,1776952247126,-733.0048413,0.00021967,2]
[421051749,1776952247135,-733.0048413,0.00021967,2]
[421051750,1776952247145,-733.0048413,0.00021967,2]
[421051751,1776952247154,-733.0048413,0.00021967,2]
[421051752,1776952247164,-733.0048413,0.00021967,2]
[421051753,1776952247173,-733.0048413,0.00021967,2]
[421051754,1776952247183,-733.0048413,0.00021967,2]
[421051755,1776952247192,-733.0048413,0.00021967,2]
[421051756,1776952247202,-733.0048413,0.00021967,2]
[421051757,1776952247212,-733.0048413,0.00021967,2]
[421051758,1776952247221,-733.0048413,0.00021967,2]
[421051759,1776952247232,-733.0048413,0.00021967,2]
[421051760,1776952247242,-733.0048413,0.00021967,2]
[421051761,1776952247251,-733.0048413,0.00021967,2]
[421051762,1776952247261,-733.0048413,0.00021967,2]
[421051763,1776952247270,-733.0048413,0.00021967,2]
[421051764,1776952247279,-733.0048413,0.00021967,2]
[421051765,1776952247289,-733.0048413,0.00021967,2]
[421051766,1776952247298,-151.0,0.00021976,7]
[421051767,1776952247309,-52804.67911676,0.00021978,2]
[421051772,1776952362389,181.0,4.011e-05,2]
[421051773,1776952362416,500.0,4.011e-05,2]
[421051774,1776952362443,500.0,4.011e-05,2]
[421051775,1776952411689,10000.0,4.01e-05,2]
[421051778,1776952491009,2069.0,4.01e-05,2]
[421051780,1776952862950,-835.51069104,7.6e-05,2]
[421051781,1776953136095,-587.15343932,7.6e-05,2]
[421051782,1776953239104,-1306.54748561,7.6e-05,2]
[421051783,1776953345109,-169.58814983,7.6e-05,2]
[421051784,1776953345132,-1200.0,9.424e-05,2]
[421051785,1776953345154,-300.0,9.424e-05,2]
[421051786,1776953345173,-61803.38701551,9.425e-05,2]
[421051787,1776953345195,-150.0,9.855e-05,2]
[421051788,1776953345523,-500.0,9.855e-05,2]
[421051789,1776953345549,-944.0,0.00010366,2]
[421051790,1776953345569,-249.0,0.00010366,2]
[421051791,1776953345592,-177.0,0.00011855,2]
[421051792,1776953345611,-166.14923822,0.000129,2]
[421051793,1776953345631,-507.47477826,0.00013699,2]
[421051794,1776953358137,-204.0,0.00013855,2]
[421051795,1776953358158,-511.58478604,0.00014137,2]
[421051796,1776953358180,-166.41521396,0.00015855,2]
[421051797,1776953368088,-636.13275789,0.00013699,2]
[421051798,1776953370116,-363.86724211,0.00013699,2]
[421051799,1776953370142,-64.58478604,0.00015855,2]
[421051800,1776953370168,-62.22306843,0.00017855,2]
[421051825,1776953431759,-143.43241033,0.00017855,2]
[421051826,1776953431771,-160.0,0.00018,2]
[421051827,1776953431781,-160.0,0.00018,2]
[421051828,1776953431790,-207.14396865,0.00019452,18]
[421051829,1776953431799,-160.0,0.000195,10]
[421051830,1776953431809,-160.0,0.000195,7]
[421051831,1776953431821,-165.0,0.000195,7]
[421051832,1776953431830,-165.0,0.000195,5]
[421051833,1776953431841,-184.0,0.00019577,2]
[421051834,1776953431851,-207.14396865,0.00019726,18]
[421051835,1776953431862,-160.0,0.000198,14]
[421051836,1776953431872,-160.0,0.000198,14]
[421051837,1776953431881,-262.616,0.00019878,2]
[421051838,1776953431891,-160.0,0.00019999,2]
[421051839,1776953431900,-908.0,0.0002,2]
[421051840,1776953431909,-10000.0,0.0002,2]
[421051841,1776953431919,-153.0,0.0002,2]
[421051842,1776953431928,-158.0,0.0002,2]
[421051843,1776953431938,-271.0,0.0002,2]
[421051844,1776953431947,-157.0,0.0002,2]
[421051845,1776953431956,-3177.60435774,0.000208,2]
[421051846,1776953431966,-5998.45929463,0.000208,2]
[421051848,1776953431978,-582.08902,0.000208,2]
[421051860,1776953437938,-2299.82611905,0.000208,2]
[421051861,1776953437951,-1247.59282015,0.000208,2]
[421051862,1776953437963,-1266.68962655,0.000208,2]
[421051863,1776953437992,-36578.87111453,0.000208,2]
[421051864,1776953438001,-2150.738,0.00020841,2]
[421051865,1776953438011,-640.12772815,0.00020887,2]
[421051866,1776953438021,-357.47860445,0.00020898,2]
[421051867,1776953438031,-53695.58194795,0.000209,2]
[421051872,1776953440143,-384.033501,0.000209,2]
[421051873,1776953440249,-145.17194284,0.000209,2]
[421051900,1776953446636,-28993.5509364,0.000209,2]
[421051901,1776953446646,-6887.0991546,0.000209,2]
[421051902,1776953446656,-3876.1993556,0.000209,2]
[421051904,1776954357091,-603.0,0.00012888,2]
[421051905,1776954357114,-150.0,0.00012888,2]
[421051906,1776954357135,-521.02022687,0.00013699,2]
[421051907,1776954548123,-171.70292068,0.00012889,2]
[421051908,1776954553120,-431.29707932,0.00012889,2]
[421051909,1776954553144,-151.0,0.00012889,2]
[421051910,1776954553168,-151.0,0.00013288,2]
[421051911,1776954553199,-1000.0,0.00013699,2]
[421051912,1776954553224,-151.0,0.0001392,2]
[421051913,1776954553248,-173.33,0.000145,2]
[421051914,1776954553279,-177.0,0.00014888,2]
[421051915,1776954553307,-200.25146696,0.00015346,2]
[421051916,1776954553333,-632.28,0.00016438,2]
[421051917,1776954553358,-800.0,0.00016438,2]
[421051918,1776954553384,-200.25146696,0.00016727,7]
[421051919,1776954553415,-204.0,0.00016888,2]
[421051920,1776954553442,-162.38723156,0.000179,2]
[421051921,1776954553472,-4260.9260828,0.000179,2]
[421051955,1776954633627,-203.24497515,0.000179,2]
[421051956,1776954633638,-432.94598505,0.000179,2]
[421051957,1776954633648,-2233.8377435,0.00018,2]
[421051958,1776954633658,-1200.0,0.00018099,2]
[421051959,1776954633668,-1167.87937938,0.000181,2]
[421051960,1776954633683,-433.45811007,0.000181,2]
[421052210,1776954638401,-2862.8335685,0.000181,2]
[421052211,1776954638411,-432.94598505,0.000181,2]
[421052212,1776954638420,-2233.8377435,0.000182,2]
[421052213,1776954638429,-500.0,0.00018299,2]
[421052214,1776954638439,-4464.17105795,0.000183,2]
[421052215,1776954638448,-432.94598505,0.000183,2]
[421052216,1776954638457,-4464.17105795,0.000184,2]
[421052217,1776954638466,-2233.8377435,0.000184,2]
[421052218,1776954638476,-432.94598505,0.000184,2]
[421052219,1776954638485,-2233.8377435,0.000185,2]
[421052220,1776954638493,-2232.51356141,0.000185,2]
[421052221,1776954638503,-1174.99896794,0.00018535,2]
[421052222,1776954638513,-172.92572073,0.00018569,2]
[421052223,1776954638523,-4464.17105795,0.000186,2]